bitfinex/quotes_BTCUSD_20230106
["timestamp","ask_amount","ask_price","bid_price","bid_amount"]
[1673024186470,1.31796011,16847.0,16846.0,0.00190183]
[1673024191819,1.91153711,16847.0,16846.0,0.00190183]
[1673024192586,1.31796011,16847.0,16846.0,0.00190183]
[1673024194120,1.91153711,16847.0,16846.0,0.00190183]
[1673024194373,1.31796011,16847.0,16846.0,0.00190183]
[1673024195629,1.91153711,16847.0,16846.0,0.00190183]
[1673024196900,1.91153711,16847.0,16846.0,0.54848275]
[1673024197149,0.57954311,16847.0,16846.0,0.54848275]
[1673024197909,0.04532529,16847.0,16846.0,0.54848275]
[1673024198651,0.04532529,16847.0,16846.0,0.65192828]
[1673024199993,0.04532529,16847.0,16846.0,0.54848275]
[1673024203852,0.49074248,16847.0,16846.0,1.62806733]
[1673024204099,0.49074248,16847.0,16846.0,2.23771333]
[1673024204657,0.49074248,16847.0,16846.0,2.83132533]
[1673024204897,0.84704228,16847.0,16846.0,2.83132533]
[1673024205159,0.84704228,16847.0,16846.0,3.17381936]
[1673024205445,0.66884289,16847.0,16846.0,3.02834611]
[1673024205699,0.22346534,16847.0,16846.0,3.54619167]
[1673024205954,0.21646664,16847.0,16846.0,3.54619167]
[1673024206213,0.16718351,16847.0,16846.0,4.13980367]
[1673024206470,0.01184804,16847.0,16846.0,3.87135044]
[1673024206744,0.01184804,16847.0,16846.0,4.05625044]
[1673024207043,0.01184804,16847.0,16846.0,4.23379488]
[1673024207550,0.01184804,16847.0,16846.0,4.05625044]
[1673024208304,0.98532487,16849.0,16846.0,4.05625044]
[1673024208639,0.62902507,16849.0,16848.0,0.3505]
[1673024208866,0.62902507,16849.0,16848.0,3.62674458]
[1673024209389,0.62902507,16849.0,16848.0,3.6268756]
[1673024209677,1.22300276,16849.0,16846.0,0.34439586]
[1673024209951,1.22300276,16849.0,16846.0,0.40190183]
[1673024209952,0.2672178,16847.0,16846.0,0.40190183]
[1673024210190,0.2672178,16847.0,16846.0,0.4]
[1673024210449,0.6235176,16848.0,16846.0,0.99022555]
[1673024210716,0.6235176,16848.0,16846.0,1.68773794]
[1673024210982,0.015,16847.0,16846.0,1.68773794]
[1673024211245,0.015,16847.0,16846.0,1.37726536]
[1673024211468,0.015,16847.0,16846.0,1.65169813]
[1673024211738,0.6235176,16848.0,16846.0,1.65169813]
[1673024211997,0.6625176,16848.0,16846.0,1.65669813]
[1673024212297,0.01180727,16847.0,16846.0,1.65169813]
[1673024212513,0.01180727,16847.0,16846.0,1.90314794]
[1673024213288,0.02680727,16847.0,16846.0,1.90314794]
[1673024213799,0.02680727,16847.0,16846.0,1.41717536]
[1673024214316,0.29402507,16847.0,16846.0,1.41717536]
[1673024216410,0.47191613,16847.0,16846.0,1.41717536]
[1673024216647,0.45691613,16847.0,16846.0,1.41730639]
[1673024216921,0.50991613,16847.0,16846.0,1.42730639]
[1673024217734,0.50991613,16847.0,16846.0,2.50689097]
[1673024217986,0.24269833,16847.0,16846.0,3.10050297]
[1673024218525,0.24269833,16847.0,16846.0,2.92500297]
[1673024218794,0.24269833,16847.0,16846.0,2.33139097]
[1673024219039,0.50991613,16847.0,16846.0,2.33139097]
[1673024219284,0.50991613,16847.0,16846.0,1.84541839]
[1673024219541,0.50991613,16847.0,16846.0,1.25180639]
[1673024220329,0.74759402,16847.0,16846.0,0.01]
[1673024220597,0.86602322,16847.0,16846.0,0.01]
[1673024220860,0.51022446,16847.0,16846.0,0.01]
[1673024221384,0.06480727,16847.0,16846.0,0.01]
[1673024221646,0.50956928,16847.0,16846.0,0.01]
[1673024221922,0.50957007,16847.0,16846.0,0.01]
[1673024222422,0.86537023,16847.0,16846.0,0.01]
[1673024224150,0.68745317,16847.0,16846.0,0.59942901]
[1673024226145,0.86537023,16847.0,16846.0,0.59942901]
[1673024226631,1.45894723,16847.0,16846.0,0.59942901]
[1673024229157,1.45894723,16847.0,16846.0,0.5993514]
[1673024229668,1.40594723,16847.0,16846.0,0.71560141]
[1673024229939,1.53994723,16847.0,16846.0,0.71660141]
[1673024230189,0.94637023,16847.0,16846.0,0.71660141]
[1673024230467,0.76850155,16847.0,16846.0,0.71660141]
[1673024232012,0.63450155,16847.0,16846.0,0.71560141]
[1673024232300,0.76950155,16847.0,16846.0,0.71560141]
[1673024232552,0.76950155,16847.0,16846.0,1.30921341]
[1673024232851,0.59164044,16847.0,16846.0,1.30921341]
[1673024234066,0.45664044,16847.0,16846.0,1.30921341]
[1673024234310,0.8124406,16847.0,16846.0,1.30921341]
[1673024234570,0.45664044,16847.0,16846.0,2.56519799]
[1673024234825,0.59264044,16847.0,16846.0,2.56519799]
[1673024235069,0.45664044,16847.0,16846.0,2.56519799]
[1673024235327,0.59164044,16847.0,16846.0,2.56519799]
[1673024235573,0.59164044,16847.0,16846.0,3.17484399]
[1673024235574,0.32474632,16847.0,16846.0,3.17484399]
[1673024236336,0.59164044,16847.0,16846.0,3.17484399]
[1673024237125,0.32474632,16847.0,16846.0,3.17484399]
[1673024237646,0.14680727,16847.0,16846.0,3.35542698]
[1673024237866,0.14680727,16847.0,16846.0,4.48322215]
[1673024238165,0.14680727,16847.0,16846.0,3.83182698]
[1673024238424,1e-08,16847.0,16846.0,4.01787142]
[1673024238678,0.35,16849.0,16846.0,4.01787142]
[1673024238944,0.35,16849.0,16848.0,0.3528]
[1673024239240,0.35,16849.0,16848.0,1.40956849]
[1673024239462,0.35,16849.0,16848.0,2.628064]
[1673024240229,0.353,16849.0,16848.0,2.62800265]
[1673024240527,0.53093905,16849.0,16848.0,2.18094151]
[1673024240807,0.53093905,16849.0,16848.0,1.94502708]
[1673024241291,0.353,16849.0,16848.0,2.53856908]
[1673024241560,0.53093905,16849.0,16848.0,2.53856908]
[1673024241834,0.52793905,16849.0,16848.0,2.53856908]
[1673024242086,0.53093905,16849.0,16848.0,2.59956908]
[1673024242614,0.353,16849.0,16848.0,2.59956908]
[1673024242869,0.353,16849.0,16848.0,3.19311108]
[1673024243191,0.53093905,16849.0,16848.0,3.19311108]
[1673024243402,0.5411511,16849.0,16848.0,2.59956908]
[1673024243648,0.80804522,16849.0,16848.0,2.00602708]
[1673024243904,1.22358422,16849.0,16848.0,0.061]
[1673024244206,1.16377501,16849.0,16848.0,0.061]
[1673024244437,1.75728201,16849.0,16848.0,0.061]
[1673024246938,2.35078901,16849.0,16848.0,0.061]
[1673024247429,1.99498885,16849.0,16848.0,0.061]
[1673024248186,1.75723766,16849.0,16848.0,0.061]
[1673024248710,1.16373066,16849.0,16848.0,0.061]
[1673024248946,1.43054956,16849.0,16848.0,0.70017545]
[1673024249205,0.98578676,16849.0,16848.0,0.70017545]
[1673024250001,1.16366326,16849.0,16848.0,0.70017545]
[1673024250516,1.16366384,16849.0,16848.0,0.70017545]
[1673024252052,0.80790803,16849.0,16848.0,1.64651745]
[1673024253056,0.54108913,16849.0,16848.0,2.24005945]
[1673024254099,0.54098382,16849.0,16848.0,2.24005945]
[1673024254352,0.80780272,16849.0,16848.0,1.64651745]
[1673024254917,0.54098382,16849.0,16848.0,1.64651745]
[1673024255442,0.80780272,16849.0,16848.0,1.64651745]
[1673024256995,0.54098382,16849.0,16848.0,1.64651745]
[1673024257256,0.80780272,16849.0,16848.0,1.64651745]
[1673024257760,0.54098382,16849.0,16848.0,1.64651745]
[1673024258276,0.54098382,16849.0,16848.0,2.24005945]
[1673024258805,0.80780272,16849.0,16848.0,2.24005945]
[1673024259298,0.54098382,16849.0,16848.0,2.24005945]
[1673024259561,0.80780272,16849.0,16848.0,2.24005945]
[1673024260613,0.80780272,16849.0,16848.0,1.64651745]
[1673024260876,0.80780272,16849.0,16848.0,1.05297545]
[1673024261445,0.80780272,16849.0,16848.0,0.4138]
[1673024261697,1.16362535,16849.0,16848.0,0.4138]
[1673024262195,1.16362535,16849.0,16848.0,0.2374]
[1673024262478,1.99488354,16849.0,16848.0,0.061]
[1673024265577,1.55012074,16849.0,16848.0,0.061]
[1673024266561,1.40140814,16849.0,16848.0,0.70725301]
[1673024267583,1.40140814,16849.0,16848.0,0.84221764]
[1673024268842,1.40140814,16849.0,16848.0,0.19596463]
[1673024269353,1.40140814,16849.0,16848.0,0.061]
[1673024269882,1.40159229,16849.0,16848.0,0.061]
[1673024270416,0.95661374,16849.0,16848.0,0.061]
[1673024272342,0.36310674,16849.0,16848.0,0.061]
[1673024272865,0.95661374,16849.0,16848.0,0.061]
[1673024273607,2.08433856,16849.0,16848.0,0.061]
[1673024275386,2.08433856,16849.0,16848.0,0.06092753]
[1673024276164,2.08433856,16849.0,16848.0,0.08466028]
[1673024276165,0.89732456,16849.0,16848.0,0.08466028]
[1673024276432,0.89732456,16849.0,16848.0,1.99798079]
[1673024276433,0.8080874,16849.0,16848.0,1.99798079]
[1673024276728,0.8080874,16849.0,16848.0,3.20116879]
[1673024276944,0.8080874,16849.0,16848.0,2.736862]
[1673024277194,0.8080874,16849.0,16848.0,1.549778]
[1673024277452,0.8080874,16849.0,16848.0,2.01446899]
[1673024277943,0.8080874,16849.0,16848.0,1.549778]
[1673024278221,0.8080874,16849.0,16848.0,2.01441618]
[1673024278977,0.54109597,16849.0,16848.0,2.60795818]
[1673024279480,0.8080874,16849.0,16848.0,2.60795818]
[1673024279747,0.54109597,16849.0,16848.0,2.40218646]
[1673024280003,0.54109597,16849.0,16848.0,3.27711824]
[1673024280004,0.36310674,16849.0,16848.0,3.27711824]
[1673024280260,0.36310674,16849.0,16848.0,3.62819943]
[1673024281051,0.36310674,16849.0,16848.0,3.32819943]
[1673024281302,0.36310674,16849.0,16848.0,3.92187245]
[1673024281564,0.36310674,16849.0,16848.0,4.27373825]
[1673024281908,0.36310674,16849.0,16848.0,4.08993736]
[1673024282319,0.36010674,16849.0,16848.0,3.72900983]
[1673024282581,0.36010674,16849.0,16848.0,3.54533195]
[1673024282838,0.36010674,16849.0,16848.0,4.15431589]
[1673024283092,0.36010674,16849.0,16848.0,4.12031589]
[1673024283342,0.36010674,16849.0,16848.0,4.26131589]
[1673024284658,0.36010674,16849.0,16848.0,3.78661589]
[1673024285945,0.36010674,16849.0,16848.0,4.08661589]
[1673024286457,0.36010674,16849.0,16848.0,3.78661589]
[1673024287746,0.36010674,16849.0,16848.0,4.68015789]
[1673024287999,0.36010674,16849.0,16848.0,4.38015789]
[1673024288263,0.36010674,16849.0,16848.0,4.68015789]
[1673024289030,0.36010674,16849.0,16848.0,4.78336279]
[1673024289788,0.36010674,16849.0,16848.0,4.48336279]
[1673024291075,0.36010674,16849.0,16848.0,4.65936279]
[1673024293450,0.36010674,16849.0,16848.0,3.59599186]
[1673024293706,0.53809597,16849.0,16848.0,1.504084]
[1673024293964,0.8050874,16849.0,16848.0,0.734542]
[1673024294207,0.53809597,16849.0,16848.0,1.8692323]
[1673024294453,0.53809597,16849.0,16848.0,2.5096921]
[1673024294454,0.36010674,16849.0,16848.0,2.5096921]
[1673024294703,0.36010674,16849.0,16848.0,3.03561561]
[1673024294977,0.36010674,16849.0,16848.0,3.64526161]
[1673024297039,0.36010674,16849.0,16848.0,4.23880361]
[1673024297264,0.36010674,16849.0,16848.0,4.23893463]
[1673024297785,0.36010674,16849.0,16848.0,4.23884352]
[1673024298464,0.36010674,16849.0,16848.0,3.77478372]
[1673024299233,0.36010674,16849.0,16848.0,4.23899966]
[1673024300247,0.36010674,16849.0,16848.0,3.77478372]
[1673024300756,0.53809597,16849.0,16848.0,2.57159572]
[1673024301300,0.53809597,16849.0,16848.0,2.22127221]
[1673024303355,0.8050874,16849.0,16848.0,2.22127221]
[1673024304411,0.8021474,16849.0,16848.0,2.22127221]
[1673024307254,0.80598589,16849.0,16848.0,2.22127221]
[1673024308792,0.80598589,16849.0,16848.0,1.86927221]
[1673024309048,0.80598589,16849.0,16848.0,2.17319373]
[1673024309283,1.16197446,16849.0,16848.0,2.17319373]
[1673024309529,1.16197446,16849.0,16848.0,1.57965173]
[1673024309773,0.98398523,16849.0,16848.0,0.68227932]
[1673024310276,0.98398523,16849.0,16848.0,0.6821483]
[1673024310534,0.98398523,16849.0,16848.0,0.141]
[1673024311819,1.42900095,16849.0,16848.0,0.141]
[1673024312071,1.16200952,16849.0,16848.0,0.141]
[1673024313077,0.98390585,16849.0,16848.0,0.65871562]
[1673024313331,1.42892157,16849.0,16848.0,0.65871562]
[1673024313584,1.16200952,16849.0,16848.0,0.65871562]
[1673024313842,1.16200952,16849.0,16848.0,0.65884664]
[1673024314091,1.16200952,16849.0,16848.0,1.25238864]
[1673024314370,1.16200952,16849.0,16848.0,2.0881652]
[1673024314623,0.98395856,16849.0,16848.0,2.0881652]
[1673024315115,1.42897428,16849.0,16848.0,2.0881652]
[1673024315332,1.16200952,16849.0,16848.0,1.4946232]
[1673024316082,1.16200952,16849.0,16848.0,1.25225762]
[1673024317081,1.16212845,16849.0,16848.0,1.25225762]
[1673024317336,1.16212837,16849.0,16848.0,1.25225762]
[1673024319096,1.16212837,16849.0,16848.0,0.65871562]
[1673024319097,0.80602095,16849.0,16848.0,0.65871562]
[1673024319609,0.80602095,16849.0,16848.0,0.55871562]
[1673024319869,0.80602095,16849.0,16848.0,0.041]
[1673024320899,0.36100523,16849.0,16848.0,0.041]
[1673024321161,0.36100523,16849.0,16847.0,0.934559]
[1673024321463,1.0680162,16848.0,16846.0,1.94865045]
[1673024321711,0.1780029,16847.0,16846.0,1.50476081]
[1673024322225,0.1780029,16847.0,16846.0,2.09834881]
[1673024322502,0.19203097,16847.0,16846.0,2.55713507]
[1673024323783,0.19203097,16847.0,16846.0,1.99834881]
[1673024324048,0.19203097,16847.0,16846.0,2.45587311]
[1673024325301,0.19203097,16847.0,16846.0,2.35587311]
[1673024325552,0.19703097,16847.0,16846.0,2.39187311]
[1673024328087,0.19703097,16847.0,16846.0,2.29187311]
[1673024328338,0.19703097,16847.0,16846.0,1.83434881]
[1673024328856,0.46403502,16847.0,16846.0,1.53003459]
[1673024329146,0.64203752,16847.0,16846.0,1.2257414]
[1673024329604,0.64203752,16847.0,16846.0,1.223169]
[1673024330384,0.82003175,16847.0,16846.0,1.223169]
[1673024331906,0.64203752,16847.0,16846.0,1.223169]
[1673024332154,0.64203752,16847.0,16846.0,1.37463513]
[1673024333398,0.64203752,16847.0,16846.0,1.37476616]
[1673024333641,0.82003912,16847.0,16846.0,1.37476616]
[1673024333907,0.64203752,16847.0,16846.0,1.27476616]
[1673024334150,0.64203752,16847.0,16846.0,1.27463513]
[1673024334400,0.64203752,16847.0,16846.0,0.429581]
[1673024334656,0.82004022,16847.0,16846.0,0.429581]
[1673024334908,1.08705001,16847.0,16846.0,0.429581]
[1673024335166,0.82004022,16847.0,16846.0,0.429581]
[1673024336393,0.82004022,16847.0,16846.0,0.64358093]
[1673024336609,1.08704009,16847.0,16846.0,0.429581]
[1673024337122,0.64203334,16847.0,16846.0,0.429581]
[1673024337632,0.46403182,16847.0,16846.0,1.12935738]
[1673024337904,0.46403182,16847.0,16846.0,1.72296938]
[1673024338185,0.46403182,16847.0,16846.0,1.99983364]
[1673024339176,0.64203334,16847.0,16846.0,1.99983364]
[1673024339436,0.64203334,16847.0,16846.0,1.01264064]
[1673024340185,0.82005385,16847.0,16846.0,1.01264064]
[1673024340442,0.82005368,16847.0,16846.0,1.01264064]
[1673024340701,0.46404828,16847.0,16846.0,1.55625264]
[1673024341810,0.46404828,16847.0,16846.0,2.14986464]
[1673024343986,0.64203334,16847.0,16846.0,1.27938838]
[1673024345271,0.64203334,16847.0,16846.0,0.68577638]
[1673024346836,0.64203334,16847.0,16846.0,1.27938838]
[1673024347085,0.46408476,16847.0,16846.0,2.32324257]
[1673024349117,0.46408476,16847.0,16846.0,2.32344273]
[1673024349638,0.82009016,16847.0,16846.0,2.18234635]
[1673024349889,0.82009016,16847.0,16846.0,1.87300038]
[1673024350704,0.64203334,16847.0,16846.0,1.87300038]
[1673024351167,0.64203334,16847.0,16846.0,1.27938838]
[1673024352984,0.64203334,16847.0,16846.0,1.87300038]
[1673024353503,0.64203334,16847.0,16846.0,2.58765587]
[1673024354495,0.82015093,16847.0,16846.0,2.58765587]
[1673024354732,0.82015093,16847.0,16846.0,1.5004546]
[1673024354979,0.64203334,16847.0,16846.0,1.5004546]
[1673024355234,0.64203334,16847.0,16846.0,1.23615316]
[1673024355493,0.64203334,16847.0,16846.0,0.64254116]
[1673024355752,1.08704009,16847.0,16846.0,0.64254116]
[1673024356979,1.08727023,16847.0,16846.0,0.64254116]
[1673024357232,0.64226348,16847.0,16846.0,0.64254116]
[1673024357500,1.08727023,16847.0,16846.0,0.64254116]
[1673024357724,1.08730468,16847.0,16846.0,0.64254116]
[1673024358268,0.82004022,16847.0,16846.0,0.64254116]
[1673024358770,1.08730434,16847.0,16846.0,0.64254116]
[1673024358988,0.64229759,16847.0,16846.0,0.64254116]
[1673024359514,0.82004022,16847.0,16846.0,0.64254116]
[1673024361053,0.46403482,16847.0,16846.0,0.04892916]
[1673024366627,0.46403482,16847.0,16845.0,1.22400754]
[1673024366885,0.62371677,16846.0,16845.0,1.22400754]
[1673024367174,0.62371677,16846.0,16845.0,1.4418338]
[1673024368141,0.81341633,16846.0,16845.0,1.4598338]
[1673024368370,0.82742482,16846.0,16845.0,1.4598338]
[1673024368936,0.82742482,16846.0,16845.0,0.788027]
[1673024369198,0.81542482,16846.0,16845.0,0.593627]
[1673024369455,0.82042482,16846.0,16845.0,0.609627]
[1673024369721,1.08271236,16846.0,16845.0,0.593627]
[1673024369968,1.09471236,16846.0,16845.0,0.611627]
[1673024370197,0.63770561,16846.0,16845.0,0.593627]
[1673024370450,0.64270561,16846.0,16845.0,0.609627]
[1673024370695,0.64270561,16846.0,16845.0,0.593627]
[1673024370696,0.63770561,16846.0,16845.0,0.593627]
[1673024370953,0.70170561,16846.0,16845.0,0.596627]
[1673024371455,0.63770561,16846.0,16845.0,0.593627]
[1673024371717,0.81542482,16846.0,16845.0,0.593627]
[1673024372497,0.87942482,16846.0,16845.0,0.596627]
[1673024372997,0.70169629,16846.0,16845.0,1.190274]
[1673024376273,0.70169629,16846.0,16845.0,1.190274]
[1673024377248,0.70169629,16846.0,16845.0,0.59655711]
[1673024379043,0.70169629,16846.0,16845.0,0.91267683]
[1673024380097,0.87942482,16846.0,16845.0,0.91267683]
[1673024380596,0.87942482,16846.0,16845.0,0.003]
[1673024380597,1.39151285,16846.0,16845.0,0.003]
[1673024380858,1.03510327,16846.0,16845.0,0.003]
[1673024381622,1.39140378,16846.0,16845.0,0.003]
[1673024386850,1.39140378,16846.0,16845.0,0.003]
[1673024388307,1.77732052,16846.0,16845.0,0.003]
[1673024388568,2.31153834,16846.0,16845.0,0.003]
[1673024388858,2.71153834,16846.0,16845.0,0.003]
[1673024389112,2.71085834,16846.0,16845.0,0.003]
[1673024389368,2.31085834,16846.0,16845.0,0.003]
[1673024389588,1.77664052,16846.0,16845.0,0.003]
[1673024390651,2.31085834,16846.0,16845.0,0.003]
[1673024390905,3.3789761,16846.0,16845.0,0.003]
[1673024391164,3.41863727,16846.0,16845.0,0.003]
[1673024391434,3.08087034,16846.0,16845.0,0.003]
[1673024391706,3.5553761,16846.0,16845.0,0.003]
[1673024392530,3.08087034,16846.0,16845.0,0.003]
[1673024397759,3.04674814,16846.0,16845.0,0.003]
[1673024398015,3.27888616,16846.0,16845.0,0.003]
[1673024398544,3.57888616,16846.0,16845.0,0.003]
[1673024399482,0.4,16845.0,16843.0,0.0037946]
[1673024399742,2.40221858,16844.0,16843.0,0.51721829]
[1673024399993,2.75802856,16844.0,16843.0,0.51721829]
[1673024400238,2.41615957,16844.0,16843.0,0.0037946]
[1673024400482,1.82247657,16844.0,16843.0,0.0037946]
[1673024400739,2.17828653,16844.0,16843.0,0.0037946]
[1673024400996,0.63659872,16844.0,16843.0,0.75819804]
[1673024401247,0.94949263,16844.0,16843.0,0.73798424]
[1673024401500,0.58786267,16844.0,16843.0,0.73798424]
[1673024402270,0.3210149,16844.0,16843.0,0.73798424]
[1673024402528,0.3113479,16844.0,16843.0,0.73798424]
[1673024402801,0.3113479,16844.0,16843.0,0.669618]
[1673024403053,0.3113479,16844.0,16843.0,1.279264]
[1673024403299,0.13099534,16844.0,16843.0,0.669618]
[1673024403562,0.13099534,16844.0,16843.0,1.263336]
[1673024404841,0.13099534,16844.0,16843.0,2.63001257]
[1673024405103,0.13099534,16844.0,16843.0,2.0433262]
[1673024405392,0.13099534,16844.0,16843.0,3.1117442]
[1673024406352,0.44474168,16847.0,16843.0,3.1117442]
[1673024406602,0.44474168,16847.0,16845.0,0.175]
[1673024406879,1.04480772,16847.0,16846.0,0.609646]
[1673024407118,1.04480772,16847.0,16846.0,0.12543]
[1673024407119,0.44474168,16847.0,16846.0,0.12543]
[1673024407927,0.17789391,16847.0,16846.0,0.12543]
[1673024408177,0.44474168,16848.0,16846.0,1.16160737]
[1673024408407,1.2079741,16848.0,16847.0,0.1764]
[1673024409445,1.03000062,16848.0,16847.0,0.1764]
[1673024409683,1.16500062,16848.0,16847.0,0.1784]
[1673024410458,0.57968425,16848.0,16847.0,0.6938929]
[1673024410946,0.93549421,16848.0,16847.0,0.002]
[1673024411203,0.93557954,16848.0,16847.0,0.002]
[1673024412209,0.75753041,16848.0,16847.0,0.68642795]
[1673024412466,0.57953036,16848.0,16847.0,0.68642795]
[1673024412723,0.31280991,16848.0,16847.0,0.68642795]
[1673024413290,0.57953036,16848.0,16847.0,0.68642795]
[1673024413541,0.57953036,16848.0,16847.0,0.07316532]
[1673024413797,0.57953036,16848.0,16847.0,0.002]
[1673024413798,1.24207591,16848.0,16847.0,0.002]
[1673024414059,0.57953036,16848.0,16847.0,0.78289379]
[1673024414354,0.31280991,16848.0,16847.0,0.78289379]
[1673024414879,0.31280991,16848.0,16847.0,1.55177079]
[1673024414880,0.135,16848.0,16847.0,1.55177079]
[1673024415141,0.135,16848.0,16847.0,2.16141679]
[1673024415400,0.135,16848.0,16847.0,2.67747395]
[1673024415663,0.135,16848.0,16847.0,3.79599502]
[1673024416212,0.135,16848.0,16847.0,3.61959502]
[1673024416458,0.34695469,16849.0,16847.0,3.61759502]
[1673024416717,0.94432611,16849.0,16848.0,0.784946]
[1673024416990,1.146854,16849.0,16847.0,1.55026372]
[1673024417281,0.011,16848.0,16847.0,1.58226372]
[1673024417776,0.011,16848.0,16847.0,2.78548672]
[1673024418589,0.34695469,16849.0,16847.0,2.55303741]
[1673024418860,0.34695469,16849.0,16848.0,0.86494974]
[1673024419114,0.34695469,16849.0,16848.0,1.85849174]
[1673024419878,0.34695469,16849.0,16848.0,2.15849174]
[1673024419910,1.14357617,16849.0,16848.0,1.85849174]
[1673024420133,1.14357617,16849.0,16848.0,0.65530374]
[1673024420134,1.00857617,16849.0,16848.0,0.65530374]
[1673024420394,0.48195469,16849.0,16848.0,0.65930374]
[1673024420670,0.48195469,16849.0,16848.0,1.25284574]
[1673024420932,1.03726757,16849.0,16848.0,0.997542]
[1673024421186,1.03726757,16849.0,16848.0,1.173942]
[1673024421444,0.48195469,16849.0,16848.0,1.173942]
[1673024421725,0.48195469,16849.0,16848.0,1.783588]
[1673024421984,0.48195469,16849.0,16848.0,3.21523289]
[1673024422256,0.48195469,16849.0,16848.0,3.81359915]
[1673024422790,0.54992121,16852.0,16849.0,0.4]
[1673024423056,0.54992121,16852.0,16851.0,0.1764]
[1673024423312,0.54992121,16852.0,16851.0,0.98547437]
[1673024423592,0.01488374,16852.0,16851.0,1.57891037]
[1673024423860,0.01588374,16852.0,16851.0,0.37582837]
[1673024424382,0.01588374,16852.0,16851.0,1.52511876]
[1673024424634,0.01573374,16852.0,16851.0,1.52511876]
[1673024424951,0.01473374,16852.0,16851.0,1.52511876]
[1673024425470,0.01573374,16852.0,16851.0,1.52711876]
[1673024426800,0.50997605,16852.0,16851.0,0.97126437]
[1673024427047,0.62060527,16852.0,16851.0,0.1784]
[1673024427299,0.62060527,16852.0,16851.0,0.002]
[1673024429669,0.62060527,16852.0,16851.0,0.00214374]
[1673024429915,0.62060527,16852.0,16851.0,0.0578639]
[1673024430221,0.62060527,16852.0,16851.0,0.002]
[1673024430679,0.62060527,16852.0,16851.0,0.00214374]
[1673024430931,0.62060527,16852.0,16851.0,0.002]
[1673024432458,0.79841518,16852.0,16851.0,0.002]
[1673024434251,0.62060527,16852.0,16851.0,0.05488689]
[1673024434742,0.62060527,16852.0,16851.0,0.002]
[1673024435992,0.79841518,16852.0,16851.0,0.002]
[1673024437021,1.06513563,16852.0,16851.0,0.002]
[1673024438045,1.24313568,16852.0,16851.0,0.002]
[1673024438308,1.53984568,16852.0,16851.0,0.002]
[1673024439117,1.06476871,16852.0,16851.0,0.002]
[1673024439373,1.06476871,16852.0,16851.0,0.05452245]
[1673024439869,1.24313568,16852.0,16851.0,0.05452245]
[1673024440136,1.24313568,16852.0,16851.0,0.002]
[1673024441983,1.68761801,16852.0,16851.0,0.002]
[1673024442249,1.24284843,16852.0,16851.0,0.002]
[1673024442507,1.42048197,16852.0,16851.0,0.002]
[1673024442763,1.24284843,16852.0,16851.0,0.002]
[1673024444355,1.42118481,16852.0,16851.0,0.002]
[1673024444568,1.06537485,16852.0,16851.0,0.002]
[1673024445035,1.42088189,16852.0,16851.0,0.002]
[1673024445260,1.42088189,16852.0,16851.0,0.0018905]
[1673024445802,1.68750701,16852.0,16851.0,0.05682813]
[1673024446315,1.42088189,16852.0,16851.0,0.05682813]
[1673024447057,1.42088189,16852.0,16851.0,0.0018905]
[1673024447314,1.06537485,16852.0,16851.0,0.0018905]
[1673024447542,1.65877585,16852.0,16851.0,0.0018905]
[1673024447786,2.25217685,16852.0,16851.0,0.0018905]
[1673024448036,2.20740727,16852.0,16851.0,0.0018905]
[1673024448294,2.74113076,16852.0,16851.0,0.0018905]
[1673024448557,1.98380727,16852.0,16851.0,0.0018905]
[1673024449325,2.25199491,16852.0,16851.0,0.0018905]
[1673024449578,1.80740727,16852.0,16851.0,0.0018905]
[1673024450867,2.25208728,16852.0,16851.0,0.05891457]
[1673024451618,2.25208728,16852.0,16851.0,0.0018905]
[1673024451879,2.84548828,16852.0,16851.0,0.0018905]
[1673024452400,3.37921177,16852.0,16851.0,0.0018905]
[1673024452880,1.65868628,16852.0,16851.0,0.0018905]
[1673024453437,1.58753824,16852.0,16851.0,0.0018905]
[1673024453699,2.87014616,16852.0,16851.0,0.0018905]
[1673024453973,2.71392841,16852.0,16851.0,0.0018905]
[1673024454744,3.24786101,16852.0,16851.0,0.0018905]
[1673024455816,2.71392841,16852.0,16851.0,0.0018905]
[1673024456556,2.84783359,16852.0,16851.0,0.0018905]
[1673024456800,3.24783359,16852.0,16851.0,0.0018905]
[1673024458054,2.71392841,16852.0,16851.0,0.0018905]
[1673024459356,2.53752841,16852.0,16851.0,0.0018905]
[1673024459616,3.07141333,16852.0,16851.0,0.0018905]
[1673024460109,3.07141445,16852.0,16851.0,0.0018905]
[1673024460859,3.13092941,16852.0,16851.0,0.0018905]
[1673024461634,4.1833566,16852.0,16851.0,0.0018905]
[1673024461895,3.24113358,16852.0,16851.0,0.0018905]
[1673024462158,3.95391147,16852.0,16851.0,0.0018905]
[1673024462413,3.11571675,16852.0,16851.0,0.0018905]
[1673024462676,2.81571675,16852.0,16851.0,0.0018905]
[1673024464027,3.88846658,16852.0,16851.0,0.0018905]
[1673024464286,3.29506558,16852.0,16851.0,0.0018905]
[1673024464530,3.11996558,16852.0,16851.0,0.0018905]
[1673024465349,1.53316358,16852.0,16851.0,0.0018905]
[1673024465625,2.06706928,16852.0,16851.0,0.06370731]
[1673024466622,2.06706928,16852.0,16851.0,0.71588942]
[1673024466872,1.53316358,16852.0,16851.0,1.32553542]
[1673024467815,1.53316358,16852.0,16851.0,0.71588942]
[1673024468332,1.53316358,16852.0,16851.0,0.06364641]
[1673024470003,1.06108461,16852.0,16851.0,0.36364641]
[1673024470216,1.06108461,16852.0,16851.0,4.38847241]
[1673024471284,1.06108461,16852.0,16851.0,4.21207241]
[1673024471538,1.06108461,16852.0,16851.0,3.61894299]
[1673024471789,1.06108461,16852.0,16851.0,3.31711339]
[1673024471790,1.06008461,16852.0,16851.0,3.31711339]
[1673024472037,1.10208461,16852.0,16851.0,3.61911339]
[1673024472297,1.06008461,16852.0,16851.0,3.31711339]
[1673024472570,1.06308461,16852.0,16851.0,3.45711339]
[1673024472823,1.06308461,16852.0,16851.0,2.86367739]
[1673024473075,1.06308461,16852.0,16851.0,2.40989933]
[1673024473327,1.24110853,16852.0,16851.0,0.925146]
[1673024473846,1.22610853,16852.0,16851.0,0.92557944]
[1673024474065,1.04856612,16852.0,16851.0,0.92557944]
[1673024474364,1.04856612,16852.0,16851.0,0.31593344]
[1673024474612,0.78169478,16852.0,16851.0,0.31593344]
[1673024475108,0.78169478,16852.0,16851.0,0.92557944]
[1673024475605,0.78169478,16852.0,16851.0,1.14043477]
[1673024476632,1.04856612,16852.0,16851.0,0.53078877]
[1673024476880,1.04856612,16852.0,16851.0,0.3155]
[1673024477897,1.04856612,16852.0,16851.0,0.925146]
[1673024478148,1.04856612,16852.0,16851.0,0.3155]
[1673024478659,1.81977499,16852.0,16851.0,0.14]
[1673024478930,3.10604804,16852.0,16851.0,0.14]
[1673024479184,2.75021625,16852.0,16851.0,0.14]
[1673024479699,2.51238068,16852.0,16851.0,0.1715]
[1673024480250,2.1856624,16852.0,16851.0,0.1715]